Cogmind - Beta 16 @@@ ROGUE MODE // 2025.12.02 @ 20:31:49 Player: opdo Result: Destroyed by X7-RAS(R) with Subdweller Machine Gun Performance ------------- Evolutions (0) 0 Regions Visited (3) 600 Robots Destroyed (27) 135 Value Destroyed (528) 528 Prototype IDs (0) 0 Alien Tech Used (0) 0 Bonus (0) 0 TOTAL SCORE: 1263 Bonus ------- None Cogmind --------- Core Integrity 0/250 Matter 209/300 Energy 100/100 System Corruption 1% Temperature Cool (0) Movement Treading (320) Ox2 Location -10/Subcaves Parts ------- > --- POWER (1) -------- (None) > --- PROPULSION (2) --- Light Treads > --- UTILITY (2) ------ High-capacity Storage Unit Core Shielding > --- WEAPON (2) ------- Assault Rifle > --- INVENTORY (20) --- Light Ion Engine Light Treads Light Treads Light Treads Light Treads Light Treads Aluminum Leg Large Matter Pod (128) Propulsion Shielding Light Armor Plating Particle Gun Mining Laser Mining Laser Peak State ------------ > --- POWER ------------ Ion Engine > --- PROPULSION ------- Light Treads Light Treads > --- UTILITY ---------- High-capacity Storage Unit Propulsion Shielding > --- WEAPON ----------- Assault Rifle Light Assault Rifle > --- INVENTORY -------- Ion Engine Light Treads Light Treads Light Treads Light Treads Light Treads Assault Rifle Grenade Launcher Mining Laser Mining Laser [Rating: 8] Favorites ----------- Power Ion Engine Engine Ion Engine Propulsion Light Treads Treads Light Treads Utility High-capacity Storage Unit Device Tractor Beam Storage High-capacity Storage Unit Protection Propulsion Shielding Weapon Assault Rifle Ballistic Gun Assault Rifle Launcher Grenade Launcher Build | -11 -10 -10 -10 ------- Run | Yrd Mat Min Sub Slots Evolved . | . . . . Power . | . . . . Propulsion . | . . . . Utility . | . . . . Weapon . | . . . . Parts Attached 17 | 7 7 2 1 Power 2 | 1 1 . . Engine 2 | 1 1 . . Core . | . . . . Reactor . | . . . . Propulsion 4 | 2 2 . . Treads 4 | 2 2 . . Leg . | . . . . Wheel . | . . . . Hover . | . . . . Flight . | . . . . Utility 5 | 2 3 . . Device 1 | 1 . . . Storage 2 | 1 1 . . Processor . | . . . . Hackware . | . . . . Protection 2 | . 2 . . Artifact . | . . . . Weapon 6 | 2 1 2 1 Energy Gun . | . . . . Energy Cannon . | . . . . Ballistic Gun 5 | 2 1 1 1 Ballistic Cannon . | . . . . Launcher 1 | . . 1 . Special Weapon . | . . . . Impact Weapon . | . . . . Slashing Weapon . | . . . . Piercing Weapon . | . . . . Special Melee Weapon . | . . . . Unidentified Prototypes . | . . . . Parts Lost 7 | . 1 . 6 Power 2 | . 1 . 1 Propulsion 1 | . . . 1 Utility . | . . . . Weapon 4 | . . . 4 Highest Loss Streak 6 | . 1 . 6 To Critical Strikes . | . . . . Average Backups 10 | 1 9 15 15 Power . | . . . 1 Propulsion 3 | . 2 6 6 Utility 1 | . 1 3 3 Weapon 4 | 1 4 5 5 Tool/Special . | . . . . Unused Backups 14 | . 4 . 10 Power 1 | . . . 1 Propulsion 5 | . 1 . 4 Utility 4 | . 2 . 2 Weapon 4 | . 1 . 3 Tool/Special . | . . . . Average Slot Usage (%) 99 | . 99 100 97 Engine 13 | . 13 14 13 Treads 27 | . 28 28 26 Device 3 | . 4 . . Storage 14 | . 14 14 14 Protection 10 | . 9 14 14 Ballistic Gun 27 | . 28 26 27 Peak Build Rating 8 | 7 8 8 8 Average Rating 7 | 5 7 8 7 On Entrance 5 | . 7 8 8 Avg Prop Armor Cover (%) . | . . . . Naked Turns . | . . . . Heaviest Build 49 | 15 49 49 49 Greatest Support 40 | 40 40 40 40 Greatest Overweight (x) 1 | . 1 1 1 Average Overweight (x) . | . . 1 1 Largest Inventory Capacity 20 | 8 20 20 20 Average Capacity 14 | 7 13 20 20 Most Carried 16 | 5 14 16 16 Average Carried 10 | 2 9 15 15 Final Capacity 20 | 8 20 20 20 Final Carried 16 | 5 14 16 13 Class Distribution -------------------- 100% | Mutant Dominant Class ---------------- Mutant | -10/Materials Mutant | -10/Mines Mutant | -10/Subcaves Resources | -11 -10 -10 -10 ----------- Run | Yrd Mat Min Sub Matter Collected 738 | 239 471 21 7 Remotely 54 | 16 38 . . Salvage Created 768 | 74 588 27 79 Parts 64 | 7 39 6 12 Haulers Intercepted 2 | . 2 . . Recyclers Shooed 1 | 1 . . . Parts Field Recycled . | . . . . Retrieved Matter . | . . . . Parts Self-Destructed . | . . . . Prevented . | . . . . Parts Restored . | . . . . Kills | -11 -10 -10 -10 ------- Run | Yrd Mat Min Sub Combat Hostiles Destroyed 22 | . 16 3 3 Guns 18 | . 16 . 2 AOE 4 | . . 3 1 Classes Destroyed 7 | 2 5 . . Worker 1 | . 1 . . Tunneler 1 | 1 . . . Hauler 2 | . 2 . . Recycler 1 | 1 . . . Swarmer 12 | . 9 3 . Grunt 6 | . 6 . . Subdweller 4 | . 1 . 3 Best Kill Streak 6 | 2 6 4 3 Combat Bots Only 4 | . 4 4 3 Max Kills in Single Turn 3 | 1 2 3 1 Gunslinging . | . . . . Exploded 3 | . . 3 1 Melee . | . . . . Uniques/NPCs Destroyed . | . . . . Combat | -11 -10 -10 -10 -------- Run | Yrd Mat Min Sub Hostile Shots Fired 98 | . 72 3 23 Missed 21 | . 16 . 5 Hits 77 | . 56 3 18 Projectile 77 | . 56 3 18 Critical Strikes 2 | . 2 . . Actively Blocked 1 | . 1 . . Damage Taken 1162 | . 601 47 514 Core 257 | . 151 6 100 Absorbed by Shields . | . . . . Redirected to Shielding 69 | . 51 1 17 Core Remaining (%) 100 | 100 . . . Volleys Fired 66 | 3 52 1 10 Largest 2 | 2 2 2 2 Hottest 50 | 40 40 50 50 Shots Fired 132 | 6 104 2 20 Gun 127 | 6 104 1 16 Cannon . | . . . . Launcher 5 | . . 1 4 Special . | . . . . Kinetic 127 | 6 104 1 16 Thermal . | . . . . Explosive 5 | . . 1 4 Electromagnetic . | . . . . Robot Hit Streak 11 | 2 11 . 11 Robot Miss Streak 4 | 1 4 2 1 Penetration Max . | . . . . Secondary Targets 1 | . . . 1 Max Gunslinging Chain 1 | . . . 1 Shots Hit Robots 92 | 2 73 . 17 Core Hits 43 | 2 30 3 8 Critical Kills . | . . . . Critical Parts Destroyed 1 | . 1 . . Critical Strikes 1 | . 1 . . Destroy 1 | . 1 . . Melee Attacks . | . . . . Impact . | . . . . Slashing . | . . . . Piercing . | . . . . Sneak Attacks . | . . . . Combat Hostiles . | . . . . Follow-up Attacks . | . . . . Damage Inflicted 1448 | 37 867 149 395 Guns 1064 | 37 862 11 154 Cannons . | . . . . Explosions 379 | . . 138 241 Melee . | . . . . Ramming 5 | . 5 . . Kinetic 1064 | 37 862 11 154 Thermal . | . . . . Explosive 379 | . . 138 241 Electromagnetic . | . . . . Impact . | . . . . Slashing . | . . . . Piercing . | . . . . Highest Corruption 1 | . 1 1 1 Average Corruption 1 | . 1 1 1 Corruption Purged . | . . . . Corruption Blocked . | . . . . Effects 5 | . 5 . . Message Errors 1 | . 1 . . Matter Fused 1 | . 1 . . Energy Discharges 3 | . 3 . . Overload Shots . | . . . . Overflow Damage . | . . . . Projectiles . | . . . . Explosions . | . . . . Melee . | . . . . Knockbacks . | . . . . Impact . | . . . . Kinetic . | . . . . Secondary . | . . . . Self-Inflicted Damage 51 | . . 24 27 Shots 3 | . . 1 2 Rammed 2 | 1 1 . . Targets Rammed 3 | 1 2 . . Kicked . | . . . . Crushed 1 | . 1 . . Highest Temperature 22 | . 22 . . Average Temperature 9 | . 9 . . Received Heat Transfer 315 | . 219 . 96 Siege Activations . | . . . . Martial Activations . | . . . . Shielding Activations . | . . . . Robots Disrupted . | . . . . Combat Hostiles . | . . . . Robots Corrupted . | . . . . Combat Hostiles . | . . . . Parts Fried . | . . . . Impact Corruptions . | . . . . Robots Melted . | . . . . Combat Hostiles . | . . . . Parts Melted . | . . . . Heat Transferred . | . . . . Parts Sabotaged . | . . . . Parts Stolen . | . . . . Parts Stripped . | . . . . Power Chain Reactions . | . . . . Alert | -11 -10 -10 -10 ------- Run | Yrd Mat Min Sub Maximum Alert Level . | . . . . Low Security (%) 100 | 100 100 100 . Level 1 . | . . . . Level 2 . | . . . . Level 3 . | . . . . Level 4 . | . . . . Level 5 . | . . . . High Security . | . . . . Max Security . | . . . . Peak Influence 181 | 5 181 119 . Initial 39 | . . 39 . Average 82 | . 88 102 . Influence Increases 513 | 10 423 80 . Destroy 0b10 Robot/C 360 | . 300 60 . Destroy 0b10 Robot/NC 25 | 10 15 . . Destroy Leader 64 | . 54 10 . Successful Hack 24 | . 24 . . Destroy Structure 10 | . . 10 . Lose Combat Pursuer 30 | . 30 . . Influence Decreases 513 | 10 322 92 89 Entered New Map 109 | . . 62 47 Time Decay 394 | 10 312 30 42 Lost Part 10 | . 10 . . Squads Dispatched 1 | . 1 . . Investigation 1 | . 1 . . Extermination . | . . . . Reinforcement . | . . . . Assault . | . . . . Garrison . | . . . . Intercept . | . . . . Searches Triggered . | . . . . Construction Impeded . | . . . . Haulers Reinforced . | . . . . Active Scanning Responses . | . . . . Cargo Convoy Interrupts . | . . . . Stealth | -11 -10 -10 -10 --------- Run | Yrd Mat Min Sub Distress Signals 2 | . 2 . . Communications Jammed . | . . . . Distress Signals . | . . . . Times Spotted 29 | . 21 3 5 Peak Tracking Total 5 | . 5 . 3 Tactical Retreats 1 | . 1 . . Traps | -11 -10 -10 -10 ------- Run | Yrd Mat Min Sub Traps Triggered 2 | . 1 . 1 Indirectly . | . . . . Trap Hack Attempts . | . . . . Triggered . | . . . . Disarmed . | . . . . Reprogrammed . | . . . . Reused . | . . . . Traps Extracted . | . . . . Installed . | . . . . Triggered . | . . . . Machines | -11 -10 -10 -10 ---------- Run | Yrd Mat Min Sub Machines Disabled . | . . . . Max in Single Turn . | . . . . Machines Repaired . | . . . . Machines Dismantled . | . . . . Machines Sabotaged . | . . . . Overloaded Fab Kills . | . . . . Hacking | -11 -10 -10 -10 --------- Run | Yrd Mat Min Sub Machines Accessed 8 | . 8 . . Terminals 6 | . 6 . . Fabricators . | . . . . Repair Stations 1 | . 1 . . Recycling Units 1 | . 1 . . Scanalyzers . | . . . . Garrison Access . | . . . . Total Hacks 25 | . 25 . . Successful 12 | . 12 . . Failed 12 | . 12 . . Catastrophic . | . . . . Database Lockouts 1 | . 1 . . Manual 22 | . 22 . . Terminals 20 | . 20 . . Fabricators . | . . . . Repair Stations 3 | . 3 . . Recycling Units 2 | . 2 . . Scanalyzers . | . . . . Garrison Access . | . . . . Terminal Hacks 2 | . 2 . . Robot Analysis 1 | . 1 . . Terminal Index 1 | . 1 . . Fabricator Hacks . | . . . . Repair Station Hacks . | . . . . Recycling Unit Hacks 2 | . 2 . . Report Inventory 1 | . 1 . . Retrieve Components 1 | . 1 . . Scanalyzer . | . . . . Garrison Access Hacks . | . . . . Unauthorized Hacks 8 | . 8 . . Terminals 8 | . 8 . . Assimilate 1 | . 1 . . Botnet 1 | . 1 . . Operators 1 | . 1 . . Skim 5 | . 5 . . Fabricators . | . . . . Repair Stations . | . . . . Recycling Units . | . . . . Scanalyzers . | . . . . Garrison Access . | . . . . Data Cores Recovered . | . . . . Used . | . . . . Hacking Detections 6 | . 6 . . Full Trace Events . | . . . . Feedback Events . | . . . . Feedback Blocked . | . . . . Robot Schematics Acquired . | . . . . Robots Built . | . . . . Authchips . | . . . . Time . | . . . . Total Robot Build Rating . | . . . . Part Schematics Acquired . | . . . . Parts Built . | . . . . Authchips . | . . . . Time . | . . . . Total Part Build Rating . | . . . . Part Studies Acquired . | . . . . Parts Repaired . | . . . . Time . | . . . . Parts Recycled . | . . . . Recycled Matter . | . . . . Retrieved Matter . | . . . . Retrieved Components 2 | . 2 . . Parts Scanalyzed . | . . . . Part Schematics Acquired . | . . . . Parts Damaged . | . . . . Bothacking | -11 -10 -10 -10 ------------ Run | Yrd Mat Min Sub Used RIF Installer . | . . . . Robots Hacked . | . . . . Non-combat . | . . . . Combat . | . . . . Robot Hacks Applied . | . . . . Relay Couplers Released . | . . . . Fabnet Peak Effective % . | . . . . Robots Rewired . | . . . . Allies Hacked . | . . . . Hacks Repelled . | . . . . Allies | -11 -10 -10 -10 -------- Run | Yrd Mat Min Sub Total Allies . | . . . . Largest Group . | . . . . Highest-Rated Group . | . . . . Highest-Rated Ally . | . . . . Total Orders . | . . . . Ally Attacks . | . . . . Total Damage . | . . . . Kills . | . . . . Allies Corrupted . | . . . . Allies Melted . | . . . . Intel | -11 -10 -10 -10 ------- Run | Yrd Mat Min Sub Active Infowar (turns) . | . . . . Robot Analysis Total 1 | . 1 . . Derelict Logs Recovered . | . . . . Drone Launches . | . . . . Drone Recoveries . | . . . . Exploration | -11 -10 -10 -10 ------------- Run | Yrd Mat Min Sub Turns Passed 1397 | 101 1041 74 181 Spaces Moved 584 | 49 446 28 61 Core 2 | 2 . . . Treads 582 | 47 446 28 61 Legs . | . . . . Wheels . | . . . . Hover . | . . . . Flight . | . . . . Fastest Speed 50 | 50 160 240 240 Average Speed 195 | 155 190 240 240 Slowest Speed 240 | 160 240 240 240 Overloaded Moves . | . . . . Propulsion Burnouts . | . . . . Robots Hopped . | . . . . Potential Cave-ins . | . . . . Cave-ins Triggered . | . . . . Exploration Rate (%) 26 | 5 81 8 10 Regions Visited 3 Branch Regions 2 Pre-discovered Areas . | . . . . Known Exits Taken 1 | . . 1 . Unknown Exits Taken 2 | 1 1 . . Scrap Searched . | . . . . Spaces Dug . | . . . . Terrain Destroyed 24 | . . 10 14 Melee . | . . . . Projectile . | . . . . AOE 24 | . . 10 14 Terrain Rammed . | . . . . Walls Destroyed . | . . . . Machines Disabled . | . . . . Actions | -11 -10 -10 -10 --------- Run | Yrd Mat Min Sub Total 713 | 64 543 32 74 Wait 17 | . 17 . . Move 582 | 49 445 27 61 Hop . | . . . . Pick Up 19 | 5 13 1 . Fast Attach 7 | 7 . . . Attach 4 | . 1 . 3 Detach . | . . . . Swap 9 | . 6 3 . Drop 7 | . 7 . . Fire 66 | 3 52 1 10 Melee . | . . . . Ram . | . . . . Kick . | . . . . Crush 2 | . 2 . . Escape Stasis . | . . . . Rewire . | . . . . Trap . | . . . . Miscellaneous . | . . . . Route ------- -11/Scrapyard -10/Materials (discovered 4 exits: *Mat x2 / [*Min] / Sub) -10/Mines -10/Subcaves History --------- Turn | Location | Event 29 | -11/Scrapyard | Discovered new exit (range 16) 102 | -11/Scrapyard | Entered Materials 161 | -10/Materials | Discovered new exit (range 14) 301 | -10/Materials | Build established: Mutant 301 | -10/Materials | Discovered new exit (range 16) 496 | -10/Materials | Central database locked down 584 | -10/Materials | Loaded intel: 14 trap records 664 | -10/Materials | Learned Storage emergency access door positions 799 | -10/Materials | Identified exit to Subcaves 799 | -10/Materials | Identified exit to Materials 802 | -10/Materials | Derelicts attacked the area 851 | -10/Materials | Core integrity fell below 50% 915 | -10/Materials | Learned Storage security intel 989 | -10/Materials | Loaded intel: 1 repair station location 1143 | -10/Materials | Entered Mines 1199 | -10/Mines | Assembled infested the area 1202 | -10/Mines | Discovered exit to Subcaves (range 8) 1217 | -10/Mines | Entered Subcaves 1218 | -10/Subcaves | Approached by a straggling Scientist 1388 | -10/Subcaves | Core integrity fell below 20% 1398 | -10/Subcaves | Destroyed by X7-RAS(R) with Subdweller Machine Gun Last Messages --------------- beginning to lose hope I'd never make it past all the Subs lurking out here." 01294_ Triggered Piercing Trap. 01294_ Spikes shoot up from the floor. 01294_ Critical hit (Impale). 01303_ Acquired 7 matter. 01326_ Q3-0NL(O) collects matter. 01372_ Lgt. Treads destroyed. 01374_ Lgt. Assault Rifle destroyed. 01375_ DV-497(R) destroyed. 01378_ YV-5SG(R) destroyed. 01383_ QT-CEI(R) affixes Scrap Shield Fragment to Scrap Shield. 01385_ 0V-QZV(R): "ARGHSUB!" 01385_ Grenade Launcher destroyed. 01385_ Ion Engine destroyed. 01387_ Assault Rifle destroyed. 01392_ QT-CEI(R) destroyed. 01392_ Switching to secondary target: 0V-QZV(R). 01396_ Lgt. Assault Rifle destroyed. Map ----- +----------------------------------------------------+ | ??????????????????# #??????# ##??????????? | | ??????????????????# ##????# ##???????????? | | ??????????????????# ###??### ###??????????? | | ???????????????????# ##???## ###????????? | | ???????????????????# #???## ##???????? | | ??????????#????????# #??## ##??????? | | ??????????# ????????# ##?# ##?????? | | ???????????# ???????# ### #?????? | | ???????????# ??????# % # #?????? | | ???????????# ?????# #????? | | ????????????# ##### #???? | | ????????????# # %## ######## #??? | | ????????????# ##########??????? #???? | | ????????????### ## ##????????????????? #???? | | ????# ???????# ?# #?????????????????? ????? | | ????# ?????# ???## ##??????????????????? ????? | | ???# ?? ?????# #?????????????????????????? | | ?????# ?????## ##?????????????????????????? | | ??????# ##### #??????????????????????????? | | ???????# #??????????????????????????? | | ?????????# #??????????????????????????? | | ?????????#### # # #??????????????????????????? | | ?????????????##### ##?????????????????????????? | | ???????????### ####??????????????????????? | | ????????# #;###????????????????????? | | ??????? ## ## @ ;#????????????????????? | | ??????? ???#??# R #??????????????????? | | ????????????????# [ #??????????????????? | | ????????????????# ## &%= #?????????????????? | | ????????????????# ## ]![ ????????????????? | | ????????????????# ### [ ??????????????? | | ????????????????# ### R! ????????????? | | ????????????????###??# ???????????? | | ?????????????????????## # ???????????? | | ??????????????????????# " " ##???????????? | | ??????????????????????##"## "" """##????????????? | | ???????????????????????### " ## "%??????????????? | | ?????????????????????????? ?% ???????????????? | | ??????????????????????????# #? ????????????????? | | ??????????????????????????? #??"????????????????? | | ??????????????????????????? ???????????????????? | | ??????????????????????????? ????????????????????? | | ????????????????????????????#????????????????????? | | ?????????????????????????????????????????????????? | | ?????????????????????????????????????????????????? | | ?????????????????????????????????????????????????? | | ?????????????????????????????????????????????????? | | ?????????????????????????????????????????????????? | | ?????????????????????????????????????????????????? | | ?????????????????????????????????????????????????? | +----------------------------------------------------+ Best States ------------- Heat Dissipation 25 Energy Generation 10 Energy Capacity 250 Matter Stores 300 Matter Capacity 300 Sight Range 16 Terrain Scan Density 10 Core Shielding 20 Propulsion Shielding 33 Evasion (%) 40 Recoil Reduction 2 Item Schematics ----------------- None Robot Schematics ------------------ None Fabricated ------------ Nothing Repaired ---------- Nothing Studied --------- None Alien Tech Used ----------------- None Achievements -------------- None Challenges ------------ None Game ------ Seed LargeSystemPit Manual? 0 Play Time 00:06:43 Cumulative 134.8 hours Start 2025.12.02 @ 20:25:48 End 2025.12.02 @ 20:31:49 Sessions 1 Manual Loads 0 Difficulty Rogue Special Mode None Game No. 337 Rogue 335 Adventurer 2 Explorer 0 Win Type - Total 1 Types 1/0/0/0/0/0/0/0/0/0 Lore% 80 Gallery% 63 Achievement% 42 Wizard Run 0 Options --------- Layout 2 ASCII 0 Keyboard 0 Movement Numpad Keybinds 0 Fullscreen 2 Font 24/Smallcaps Map View 50x44 Zoom Use 0% Tactical HUD 1 Map Filters NONE Filters NONE Steam 1 RUN: ff0fd42b-5be6-4c36-bb02-cc67d1ec4500